bitfinex-derivatives/quotes_BTCF0:USTF0_20250424
["timestamp","ask_amount","ask_price","bid_price","bid_amount"]
[1745526917321,0.0643,93521.0,93520.0,0.0678102]
[1745526917718,0.3608,93557.0,93520.0,0.106928]
[1745526917912,0.03,93556.0,93534.0,0.0534335]
[1745526918117,0.1068662,93536.0,93530.0,0.16418744]
[1745526918317,0.03,93535.0,93531.0,0.1194757]
[1745526918714,0.03,93535.0,93534.0,0.106868]
[1745526919120,0.202,93535.0,93534.0,0.106868]
[1745526920114,0.204,93535.0,93534.0,0.107868]
[1745526920819,0.235,93535.0,93534.0,0.107868]
[1745526921323,0.235,93535.0,93534.0,0.001]
[1745526921729,0.235,93535.0,93533.0,0.09448807]
[1745526922128,0.235,93535.0,93534.0,0.106868]
[1745526924125,0.063,93535.0,93534.0,0.106868]
[1745526925131,0.062,93535.0,93534.0,0.08117741]
[1745526925323,0.063,93535.0,93534.0,0.08217741]
[1745526926231,0.235,93535.0,93534.0,0.08217741]
[1745526927133,0.063,93535.0,93534.0,0.08217741]
[1745526928232,0.066,93566.0,93555.0,0.1068441]
[1745526928429,0.0326,93560.0,93559.0,0.1068395]
[1745526928634,0.0326,93560.0,93557.0,0.0534203]
[1745526929137,0.04049227,93560.0,93557.0,0.0534203]
[1745526929334,0.04049227,93560.0,93557.0,0.0494203]
[1745526929534,0.1375395,93559.0,93558.0,0.0309]
[1745526929936,0.1701395,93559.0,93558.0,0.0309]
[1745526930836,0.1741395,93559.0,93558.0,0.0309]
[1745526931239,0.1853314,93559.0,93558.0,0.0309]
[1745526931425,0.2170314,93559.0,93558.0,0.0309]
[1745526931937,0.2200314,93559.0,93558.0,0.0319]
[1745526932432,0.2200314,93559.0,93558.0,0.001]
[1745526933034,0.3269154,93559.0,93558.0,0.001]
[1745526933234,0.1068506,93550.0,93543.0,0.0534289]
[1745526933536,0.3608,93546.0,93545.0,0.1068555]
[1745526933937,0.0944,93549.0,93545.0,0.1068555]
[1745526934138,0.0944,93549.0,93546.0,0.106854]
[1745526935138,0.2664,93549.0,93546.0,0.106854]
[1745526935535,0.2664,93549.0,93546.0,0.107854]
[1745526935838,0.2664,93549.0,93546.0,0.106854]
[1745526936140,0.0944,93549.0,93546.0,0.106854]
[1745526936540,0.0944,93549.0,93546.0,0.001]
[1745526936741,0.0944,93549.0,93548.0,0.106852]
[1745526936942,0.0954,93549.0,93548.0,0.106852]
[1745526937841,0.0964,93549.0,93548.0,0.107852]
[1745526938836,0.0954,93549.0,93548.0,0.106852]
[1745526939035,0.0964,93549.0,93548.0,0.108852]
[1745526941142,0.0964,93549.0,93548.0,0.002]
[1745526944142,0.0964,93549.0,93541.0,0.0534299]
[1745526944443,0.0964,93549.0,93544.0,0.1068563]
[1745526944943,0.0964,93549.0,93548.0,0.002]
[1745526945544,0.0954,93549.0,93548.0,0.002]
[1745526945749,0.0964,93549.0,93548.0,0.004]
[1745526946137,0.0954,93549.0,93548.0,0.002]
[1745526946336,0.0964,93549.0,93548.0,0.003]
[1745526946640,0.0964,93549.0,93548.0,0.002]
[1745526946847,0.0964,93549.0,93548.0,0.003]
[1745526947337,0.0964,93549.0,93548.0,0.001]
[1745526948147,0.0964,93549.0,93548.0,0.002]
[1745526948846,0.0964,93549.0,93548.0,0.108852]
[1745526949348,0.0964,93549.0,93548.0,0.002]
[1745526950942,0.0964,93549.0,93548.0,0.0349]
[1745526951242,0.0954,93549.0,93548.0,0.0339]
[1745526951442,0.0964,93549.0,93548.0,0.0349]
[1745526952050,0.0954,93549.0,93548.0,0.0339]
[1745526952250,0.0964,93549.0,93548.0,0.001]
[1745526952549,0.0954,93549.0,93548.0,0.001]
[1745526952744,0.0964,93549.0,93548.0,0.003]
[1745526953149,0.0954,93549.0,93548.0,0.001]
[1745526953354,0.0954,93549.0,93548.0,0.003]
[1745526953355,0.0964,93549.0,93548.0,0.003]
[1745526960255,0.0964,93549.0,93548.0,0.109852]
[1745526960954,0.0964,93549.0,93548.0,0.003]
[1745526961450,0.0964,93549.0,93548.0,0.109852]
[1745526962456,0.0964,93549.0,93548.0,0.142752]
[1745526964359,0.0964,93549.0,93548.0,0.109852]
[1745526965558,0.0964,93549.0,93548.0,0.09647401]
[1745526966753,0.0964,93549.0,93548.0,0.45727401]
[1745526966956,0.3608,93561.0,93558.0,0.1068406]
[1745526967162,0.0309,93559.0,93558.0,0.1068406]
[1745526967358,0.4142068,93582.0,93566.0,0.1068315]
[1745526967662,0.1068202,93576.0,93566.0,0.1068315]
[1745526967860,0.0534078,93580.0,93566.0,0.1068315]
[1745526968165,0.106819,93577.0,93566.0,0.1048315]
[1745526968454,0.106819,93577.0,93566.0,0.1354315]
[1745526968667,0.0301,93576.0,93566.0,0.1334315]
[1745526969062,0.0061,93567.0,93566.0,0.1334315]
[1745526969356,0.0061,93567.0,93566.0,0.1077514]
[1745526969562,0.01710905,93567.0,93566.0,0.1077514]
[1745526969947,0.02010905,93567.0,93566.0,0.1087514]
[1745526971856,0.02805051,93567.0,93566.0,0.1087514]
[1745526972455,0.02805051,93567.0,93566.0,0.1397514]
[1745526973660,0.02805051,93567.0,93566.0,0.1087514]
[1745526974258,0.02805051,93567.0,93566.0,0.0781514]
[1745526979466,0.02805051,93567.0,93566.0,0.06477646]
[1745526979661,0.02805051,93567.0,93566.0,0.1078315]
[1745526989979,0.02805051,93567.0,93566.0,0.09445657]
[1745526992987,0.02805051,93567.0,93566.0,0.0687767]
[1745526996588,0.05925051,93567.0,93566.0,0.0687767]
[1745527000090,0.05925051,93567.0,93566.0,0.05540177]
[1745527010401,0.05925051,93567.0,93565.0,0.0534163]
[1745527010597,0.03,93566.0,93565.0,0.0534163]
[1745527011010,0.0607,93566.0,93565.0,0.0534163]
[1745527011610,0.0607,93566.0,93565.0,0.0544163]
[1745527011810,0.0637,93566.0,93565.0,0.0544163]
[1745527012509,0.0667,93566.0,93565.0,0.0544163]
[1745527013207,0.2387,93566.0,93565.0,0.0544163]
[1745527013609,0.2357,93566.0,93565.0,0.0554163]
[1745527013913,0.2367,93566.0,93565.0,0.0554163]
[1745527014114,0.2347,93566.0,93565.0,0.0554163]
[1745527020721,0.2347,93566.0,93565.0,0.04204084]
[1745527026534,0.2347,93566.0,93565.0,0.002]
[1745527027038,0.2347,93566.0,93565.0,0.0554163]
[1745527031140,0.2347,93566.0,93565.0,0.04204084]
[1745527034843,0.2347,93566.0,93565.0,0.10474084]
[1745527035148,0.0327,93566.0,93565.0,0.10474084]
[1745527035345,0.3608,93590.0,93565.0,0.169576]
[1745527035539,0.031,93588.0,93587.0,0.1068075]
[1745527035742,0.0052,93592.0,93589.0,0.0534021]
[1745527035948,0.0052,93592.0,93591.0,0.106803]
[1745527036246,0.0052,93592.0,93591.0,0.139203]
[1745527036448,0.0052,93592.0,93591.0,0.169503]
[1745527036638,0.0052,93592.0,93591.0,0.163503]
[1745527036833,0.01624576,93592.0,93591.0,0.163503]
[1745527037034,0.01318495,93592.0,93591.0,0.133203]
[1745527037438,0.01618495,93592.0,93591.0,0.129203]
[1745527037939,0.01818495,93592.0,93591.0,0.129203]
[1745527038948,0.05028495,93592.0,93591.0,0.129203]
[1745527039450,0.06116959,93592.0,93591.0,0.129203]
[1745527040554,0.06116959,93592.0,93591.0,0.096803]
[1745527041551,0.06116959,93592.0,93591.0,0.08343122]
[1745527043345,0.0011,93597.0,93596.0,0.1067972]
[1745527043550,0.031,93612.0,93611.0,0.1067801]
[1745527043751,0.05034039,93612.0,93611.0,0.1067801]
[1745527044461,0.05034039,93612.0,93611.0,0.1047801]
[1745527044659,0.01934039,93612.0,93611.0,0.1047801]
[1745527044852,0.031,93618.0,93611.0,0.1067795]
[1745527045054,0.3608,93614.0,93612.0,0.1067781]
[1745527045258,0.031,93613.0,93612.0,0.08110928]
[1745527045461,0.04236857,93613.0,93612.0,0.07910928]
[1745527045950,0.04236857,93613.0,93612.0,0.07710928]
[1745527046761,0.04436857,93613.0,93612.0,0.07710928]
[1745527046960,0.1067795,93612.0,93611.0,0.1067799]
[1745527047155,0.06160451,93612.0,93606.0,0.06592]
[1745527047459,0.1067842,93608.0,93607.0,0.1067847]
[1745527048058,0.2787842,93608.0,93607.0,0.1067847]
[1745527048263,0.172,93608.0,93607.0,0.1067847]
[1745527048955,0.2349,93608.0,93607.0,0.1067847]
[1745527050558,0.3416836,93608.0,93607.0,0.1067847]
[1745527051963,0.3416836,93608.0,93607.0,0.09341517]
[1745527055062,0.2349,93608.0,93607.0,0.09341517]
[1745527055266,0.0629,93608.0,93607.0,0.09341517]
[1745527058164,0.2349,93608.0,93607.0,0.09341517]
[1745527058966,0.3416845,93608.0,93606.0,0.06588]
[1745527059265,0.0629,93608.0,93607.0,0.1067847]
[1745527060868,0.1696836,93608.0,93607.0,0.1067847]
[1745527061059,0.0629,93608.0,93607.0,0.1067847]
[1745527061261,0.2349,93608.0,93607.0,0.1067847]
[1745527062067,0.0629,93608.0,93607.0,0.09341523]
[1745527063054,0.2349,93608.0,93607.0,0.09341523]
[1745527065268,0.0629,93608.0,93607.0,0.09341523]
[1745527066566,0.0629,93608.0,93606.0,0.0309]
[1745527066567,0.1067847,93607.0,93606.0,0.0309]
[1745527066763,0.053394,93605.0,93584.0,0.06588]
[1745527067067,0.3608,93591.0,93590.0,0.1068041]
[1745527067862,0.1068041,93590.0,93589.0,0.0301]
[1745527068161,0.2341,93590.0,93589.0,0.1369046]
[1745527068565,0.3409041,93590.0,93589.0,0.0301]
[1745527068764,0.2341,93590.0,93585.0,0.1068091]
[1745527068961,0.1068098,93585.0,93584.0,0.06588]
[1745527069164,0.2788098,93585.0,93584.0,0.1726909]
[1745527069366,0.172,93585.0,93584.0,0.1726909]
[1745527069760,0.2341,93585.0,93584.0,0.1726909]
[1745527070461,0.2351,93585.0,93584.0,0.1776909]
[1745527071866,0.2361,93585.0,93584.0,0.1836909]
[1745527072266,0.2361,93585.0,93584.0,0.17031772]
[1745527073569,0.2361,93585.0,93584.0,0.06350682]
[1745527073767,0.3429098,93585.0,93584.0,0.06350682]
[1745527074366,0.3429098,93585.0,93584.0,0.20111772]
[1745527075170,0.2361,93585.0,93584.0,0.20111772]
[1745527076272,0.5969,93585.0,93584.0,0.20111772]
[1745527078574,0.7037098,93585.0,93584.0,0.20111772]
[1745527078974,0.5969,93585.0,93584.0,0.20111772]
[1745527081476,0.5969,93585.0,93584.0,0.1486109]
[1745527082675,0.5969,93585.0,93584.0,0.13523791]
[1745527083768,0.5969,93585.0,93584.0,0.10956176]
[1745527085076,0.2361,93585.0,93584.0,0.10956176]
[1745527085278,0.2361,93585.0,93584.0,0.17366176]
[1745527085877,0.2361,93585.0,93584.0,0.14116176]
[1745527086078,0.2361,93585.0,93584.0,0.10956176]
[1745527093077,0.2361,93585.0,93584.0,0.09618908]
[1745527098483,0.2361,93585.0,93584.0,0.0308]
[1745527098682,0.2361,93585.0,93584.0,0.1376109]
[1745527099475,0.174,93585.0,93584.0,0.1376109]
[1745527099679,0.174,93585.0,93584.0,0.1676109]
[1745527100082,0.002,93585.0,93584.0,0.1676109]
[1745527101479,0.002,93585.0,93584.0,0.1376109]
[1745527101878,0.002,93585.0,93584.0,0.0308]
[1745527101879,0.1088098,93585.0,93584.0,0.0308]
[1745527102779,0.1413098,93585.0,93584.0,0.0308]
[1745527103275,0.1413098,93585.0,93584.0,0.01742721]
[1745527103982,0.0345,93585.0,93584.0,0.01742721]
[1745527104184,0.0345,93585.0,93584.0,0.12423811]
[1745527104782,0.0345,93585.0,93584.0,0.01742721]
[1745527105082,0.2065,93585.0,93584.0,0.1068109]
[1745527105287,0.2388,93585.0,93584.0,0.1068109]
[1745527113798,0.2388,93585.0,93584.0,0.0934381]
[1745527114498,0.2388,93585.0,93584.0,0.1246381]
[1745527115990,0.174,93585.0,93584.0,0.1246381]
[1745527116198,0.002,93585.0,93584.0,0.1551381]
[1745527117099,0.002,93585.0,93584.0,0.1246381]
[1745527117394,0.0646,93585.0,93584.0,0.1246381]
[1745527121313,0.0646,93585.0,93584.0,0.1557381]
[1745527124416,0.0646,93585.0,93584.0,0.14236612]
[1745527130022,0.0646,93585.0,93584.0,0.11126612]
[1745527134621,0.0646,93585.0,93584.0,0.09789369]
[1745527135324,0.0646,93585.0,93579.0,0.06584]
[1745527135531,0.031,93584.0,93581.0,0.053407]
[1745527135828,0.0534084,93579.0,93570.0,0.1726665]
[1745527136129,0.1068258,93571.0,93570.0,0.06584]
[1745527136826,0.01312594,93571.0,93570.0,0.06584]
[1745527137027,0.0636,93571.0,93570.0,0.1726669]
[1745527137233,0.2356,93571.0,93570.0,0.1726669]
[1745527138121,0.2487087,93571.0,93570.0,0.1726669]
[1745527138426,0.2497087,93571.0,93570.0,0.1796669]
[1745527139017,0.2487087,93571.0,93570.0,0.1726669]
[1745527139219,0.2507087,93571.0,93570.0,0.1796669]
[1745527140129,0.2507087,93571.0,93570.0,0.07284]
[1745527140324,0.3575345,93571.0,93570.0,0.07284]
[1745527140527,0.2507087,93571.0,93570.0,0.1796669]
[1745527144634,0.2507087,93571.0,93570.0,0.16629253]
[1745527145534,0.3575345,93571.0,93570.0,0.05946563]
[1745527145733,0.2507087,93571.0,93570.0,0.16629253]
[1745527147236,0.0787087,93571.0,93570.0,0.19889253]
[1745527149945,0.0787087,93571.0,93570.0,0.22979253]
[1745527150837,0.0787087,93571.0,93570.0,0.19889253]
[1745527151043,0.0787087,93571.0,93570.0,0.1464269]
[1745527152647,0.1855345,93571.0,93570.0,0.007]
[1745527152947,0.4355807,93571.0,93546.0,0.06584]
[1745527153140,0.11075174,93560.0,93549.0,0.0332]
[1745527153335,0.1068479,93552.0,93549.0,0.0332]
[1745527153646,0.1068498,93550.0,93549.0,0.0332]
[1745527154145,0.064,93550.0,93549.0,0.0332]
[1745527154340,0.064,93550.0,93549.0,0.0402]
[1745527154840,0.12636012,93550.0,93549.0,0.007]
[1745527155038,0.1068513,93549.0,93544.0,0.1400563]
[1745527155245,0.0309,93549.0,93544.0,0.0332]
[1745527155448,0.064,93548.0,93546.0,0.1068538]
[1745527155947,0.064,93548.0,93547.0,0.0332]
[1745527156145,0.064,93548.0,93547.0,0.1400532]
[1745527156951,0.065,93548.0,93547.0,0.0332]
[1745527157138,0.065,93548.0,93547.0,0.1400532]
[1745527157336,0.065,93548.0,93547.0,0.0332]
[1745527157547,0.066,93548.0,93547.0,0.1430532]
[1745527157744,0.066,93548.0,93547.0,0.003]
[1745527157745,0.172852,93548.0,93547.0,0.003]
[1745527158148,0.344852,93548.0,93547.0,0.003]
[1745527159045,0.344852,93548.0,93547.0,0.002]
[1745527159650,0.705652,93548.0,93547.0,0.002]
[1745527160152,0.706652,93548.0,93547.0,0.002]
[1745527160452,0.706652,93548.0,93543.0,0.03684511]
[1745527160453,0.1068566,93544.0,93543.0,0.03684511]
[1745527160652,0.1068566,93544.0,93543.0,0.00534511]
[1745527161245,0.1400566,93544.0,93543.0,0.00534511]
[1745527162248,0.1410566,93544.0,93543.0,0.00934511]
[1745527162648,0.1420566,93544.0,93543.0,0.00934511]
[1745527165049,0.1420566,93544.0,93542.0,0.0312]
[1745527165256,0.0315,93543.0,93542.0,0.02716607]
[1745527165447,0.0315,93543.0,93542.0,0.13402497]
[1745527165647,0.0617,93543.0,93542.0,0.13402497]
[1745527166652,0.0627,93543.0,93542.0,0.13602497]
[1745527167352,0.0534219,93556.0,93542.0,0.13602497]
[1745527167353,0.06584,93559.0,93549.0,0.1068509]
[1745527167657,0.0302,93558.0,93557.0,0.1068418]
[1745527168249,0.0315,93563.0,93557.0,0.1677418]
[1745527168451,0.0641,93568.0,93567.0,0.1068303]
[1745527168651,0.07195971,93568.0,93567.0,0.1068303]
[1745527169048,0.1068349,93563.0,93562.0,0.3608]
[1745527169253,0.0851156,93567.0,93556.0,0.0303]
[1745527169457,0.0316,93562.0,93561.0,0.1058372]
[1745527169758,0.0316,93562.0,93561.0,0.1038372]
[1745527170259,0.0316,93562.0,93561.0,0.1344372]
[1745527170653,0.0641,93562.0,93561.0,0.1344372]
[1745527170956,0.1719361,93562.0,93561.0,0.1038372]
[1745527172151,0.1729361,93562.0,93561.0,0.1038372]
[1745527172856,0.1719361,93562.0,93561.0,0.1038372]
[1745527173257,0.1729361,93562.0,93561.0,0.1068372]
[1745527173752,0.0661,93562.0,93561.0,0.1068372]
[1745527173954,0.0661,93562.0,93561.0,0.1058372]
[1745527174965,0.1729361,93562.0,93561.0,0.1058372]
[1745527176247,0.1729361,93562.0,93561.0,0.1068372]
[1745527176861,0.1719361,93562.0,93561.0,0.1068372]
[1745527177057,0.1729361,93562.0,93561.0,0.1058372]
[1745527177461,0.1719361,93562.0,93561.0,0.1058372]
[1745527177759,0.1719361,93562.0,93561.0,0.1038372]
[1745527178061,0.1729361,93562.0,93561.0,0.1058372]
[1745527179158,0.0661,93562.0,93561.0,0.1058372]
[1745527179657,0.0651,93562.0,93561.0,0.1058372]
[1745527179853,0.1729361,93562.0,93561.0,0.1058372]
[1745527180159,0.1729361,93562.0,93561.0,0.1068372]
[1745527180547,0.1729361,93562.0,93561.0,0.08115486]
[1745527180850,0.1719361,93562.0,93561.0,0.06477864]
[1745527181050,0.1729361,93562.0,93561.0,0.002]
[1745527181856,0.1729361,93562.0,93561.0,0.0321]
[1745527182654,0.1729361,93562.0,93561.0,0.0331]
[1745527187762,0.1729361,93562.0,93561.0,0.003]
[1745527188066,0.1068646,93537.0,93536.0,0.0010691]
[1745527188457,0.1068749,93528.0,93527.0,0.06584]
[1745527188764,0.0534342,93534.0,93517.0,0.06584]
[1745527188765,0.1068795,93524.0,93517.0,0.06584]
[1745527188963,0.1068909,93514.0,93513.0,0.06584]
[1745527189172,0.1054809,93514.0,93513.0,0.06584]
[1745527189674,0.4662809,93514.0,93513.0,0.06584]
[1745527190170,0.5307809,93514.0,93513.0,0.06584]
[1745527190570,0.5317809,93514.0,93513.0,0.06584]
[1745527190775,0.5327809,93514.0,93513.0,0.06684]
[1745527191175,0.54578442,93514.0,93513.0,0.06684]
[1745527191562,0.54578442,93514.0,93513.0,0.05345653]
[1745527193172,0.55398491,93514.0,93513.0,0.05345653]
[1745527194958,0.19318491,93514.0,93513.0,0.05345653]
[1745527197072,0.19318491,93514.0,93513.0,0.001]
[1745527197268,0.1069058,93501.0,93500.0,0.1]
[1745527197572,0.1069275,93482.0,93481.0,0.0322]
[1745527198576,0.1725275,93482.0,93481.0,0.0322]
[1745527198961,0.1069286,93481.0,93480.0,0.16895259]
[1745527199161,0.1069332,93477.0,93472.0,0.0627]
[1745527200373,0.1069332,93477.0,93461.0,0.3608]
[1745527200580,0.4677332,93477.0,93463.0,0.3924]
[1745527200876,0.0866649,93480.0,93463.0,0.0316]
[1745527200877,0.1069481,93464.0,93463.0,0.0316]
[1745527201267,0.1069572,93456.0,93455.0,0.06584]
[1745527201675,0.1069572,93456.0,93455.0,0.172844]
[1745527202775,0.1079572,93456.0,93455.0,0.173844]
[1745527203680,0.1089572,93456.0,93455.0,0.173844]
[1745527205184,0.11685533,93456.0,93455.0,0.173844]
[1745527205878,0.14865533,93456.0,93455.0,0.2808024]
[1745527206083,0.11685533,93456.0,93455.0,0.2808024]
[1745527207083,0.11685533,93456.0,93455.0,0.1079584]
[1745527208381,0.11685533,93456.0,93455.0,0.2149624]
[1745527208382,0.00989813,93456.0,93455.0,0.2149624]
[1745527208587,0.0627,93483.0,93473.0,0.0534686]
[1745527208779,0.1929043,93476.0,93475.0,0.1069332]
[1745527208979,0.246372,93476.0,93475.0,0.1377332]
[1745527209487,0.25941554,93476.0,93475.0,0.0308]
[1745527209693,0.1069355,93475.0,93474.0,0.1391363]
[1745527209877,0.1371355,93475.0,93474.0,0.1391363]
[1745527210189,0.1696355,93475.0,93474.0,0.1391363]
[1745527211287,0.1696355,93475.0,93474.0,0.0322]
[1745527211487,0.1696355,93475.0,93474.0,0.001]
[1745527211488,0.2241038,93475.0,93474.0,0.001]
[1745527212186,0.2251038,93475.0,93474.0,0.002]
[1745527213189,0.2251038,93475.0,93474.0,0.1089366]
[1745527216093,0.2251038,93475.0,93474.0,0.002]
[1745527224699,0.2251038,93475.0,93474.0,0.00103642]
[1745527230803,0.1069469,93465.0,93464.0,0.09798412]
[1745527231198,0.1069481,93464.0,93463.0,0.0303]
[1745527231399,0.1391481,93464.0,93463.0,0.0611]
[1745527232004,0.1699481,93464.0,93463.0,0.0611]
[1745527232595,0.1699481,93464.0,93463.0,0.1680492]
[1745527232899,0.1699481,93464.0,93463.0,0.03539197]
[1745527233205,0.063,93464.0,93463.0,0.14234117]
[1745527233405,0.1699481,93464.0,93463.0,0.03539197]
[1745527233604,0.1709481,93464.0,93463.0,0.03539197]
[1745527234009,0.064,93464.0,93463.0,0.03539197]
[1745527234200,0.1709481,93464.0,93463.0,0.03539197]
[1745527234402,0.1719481,93464.0,93463.0,0.03539197]
[1745527235208,0.1719481,93464.0,93463.0,0.02200205]
[1745527235506,0.065,93464.0,93463.0,0.12895125]
[1745527235704,0.3608,93480.0,93475.0,0.1069355]
[1745527235898,0.3608,93480.0,93479.0,0.1069309]
[1745527236201,0.01282057,93480.0,93479.0,0.1069309]
[1745527236401,0.0309,93482.0,93481.0,0.1069286]
[1745527236899,0.0309,93482.0,93481.0,0.1059286]
[1745527237100,0.0309,93482.0,93481.0,0.1049286]
[1745527237606,0.0319,93482.0,93481.0,0.1049286]
[1745527238200,0.0329,93482.0,93481.0,0.1059286]
[1745527238902,0.0643,93482.0,93481.0,0.1059286]
[1745527241911,0.0643,93482.0,93481.0,0.4667286]
[1745527242305,0.0334,93482.0,93481.0,0.4667286]
[1745527242613,0.0011,93507.0,93483.0,0.0534628]
[1745527242813,0.0309,93495.0,93494.0,0.4677138]
[1745527243414,0.0309,93495.0,93494.0,0.4977138]
[1745527243709,0.0545498,93507.0,93494.0,0.4977138]
[1745527243710,0.0011,93507.0,93502.0,0.0534521]
[1745527244010,0.0332,93506.0,93503.0,0.1069025]
[1745527244212,0.1069013,93505.0,93503.0,0.1389025]
[1745527244413,0.11996542,93505.0,93503.0,0.1389025]
[1745527244614,0.1069055,93502.0,93500.0,0.06584]
[1745527244814,0.0309,93501.0,93500.0,0.06584]
[1745527245015,0.1701058,93501.0,93500.0,0.1727469]
[1745527245215,0.0632,93501.0,93500.0,0.1727469]
[1745527245720,0.0632,93501.0,93500.0,0.15936288]
[1745527246022,0.1069126,93495.0,93494.0,0.3618]
[1745527246315,0.1069126,93495.0,93494.0,0.42764]
[1745527246817,0.1069126,93495.0,93494.0,0.06684]
[1745527247122,0.1069126,93495.0,93494.0,0.06584]
[1745527247316,0.1069126,93495.0,93494.0,0.07084]
[1745527247317,0.1725126,93495.0,93494.0,0.07084]
[1745527248927,0.1725126,93495.0,93494.0,0.04513963]
[1745527249220,0.1735126,93495.0,93494.0,0.04813963]
[1745527249911,0.1735126,93495.0,93494.0,0.04713963]
[1745527260937,0.0666,93495.0,93494.0,0.51485343]
[1745527261331,0.0343,93495.0,93494.0,0.51485343]
[1745527261638,0.002,93495.0,93494.0,0.51485343]
[1745527261931,0.002,93495.0,93494.0,0.57935343]
[1745527264336,0.002,93495.0,93494.0,0.56596914]
[1745527264737,0.0342,93495.0,93494.0,0.56596914]
[1745527266843,0.0342,93495.0,93494.0,0.5402713]
[1745527267142,0.0643,93495.0,93494.0,0.5402713]
[1745527268442,0.002,93495.0,93494.0,0.5402713]
[1745527269142,0.002,93495.0,93494.0,0.6472313]
[1745527278654,0.002,93495.0,93494.0,0.69964823]
[1745527279144,0.002,93495.0,93494.0,0.66734823]
[1745527280747,0.002,93495.0,93494.0,0.56038823]
[1745527281844,0.002,93495.0,93494.0,0.52818823]
[1745527282045,0.002,93495.0,93494.0,0.46238823]
[1745527282247,0.002,93495.0,93494.0,0.49558823]
[1745527282445,0.002,93495.0,93494.0,0.56138823]
[1745527286161,0.002,93495.0,93494.0,0.52818823]
[1745527289058,0.002,93495.0,93494.0,0.51480421]
[1745527290259,0.0636,93495.0,93494.0,0.51480421]
[1745527299169,0.11619839,93507.0,93506.0,0.1069]
[1745527299761,0.1069,93506.0,93505.0,0.1069012]
[1745527300066,0.1069,93506.0,93505.0,0.09351773]
[1745527300268,0.1069023,93504.0,93503.0,0.521154]
[1745527300467,0.1069023,93504.0,93503.0,0.586954]
[1745527300658,0.1069023,93504.0,93503.0,0.226154]
[1745527301565,0.1069023,93504.0,93503.0,0.1192515]
[1745527302768,0.1736023,93504.0,93503.0,0.1222515]
[1745527303569,0.0667,93504.0,93503.0,0.1222515]
[1745527303972,0.0667,93504.0,93503.0,0.1757025]
[1745527307470,0.0343,93504.0,93503.0,0.1757025]
[1745527307674,0.01217239,93516.0,93515.0,0.1068898]
[1745527307873,0.0311,93517.0,93516.0,0.1068886]
[1745527308878,0.0311,93517.0,93516.0,0.1048886]
[1745527309280,0.0321,93517.0,93516.0,0.1355886]
[1745527309575,0.0331,93517.0,93516.0,0.1365886]
[1745527310179,0.0321,93517.0,93516.0,0.1355886]
[1745527310371,0.0331,93517.0,93516.0,0.0317]
[1745527310870,0.0411483,93517.0,93516.0,0.0337]
[1745527311072,0.1018483,93517.0,93516.0,0.0337]
[1745527311276,0.1008483,93517.0,93516.0,0.0317]
[1745527311471,0.1018483,93517.0,93516.0,0.0347]
[1745527311681,0.1008483,93517.0,93516.0,0.0337]
[1745527311879,0.11407999,93517.0,93516.0,0.0367]
[1745527313479,0.02227999,93517.0,93516.0,0.2093886]
[1745527313667,0.0100483,93517.0,93516.0,0.2093886]
[1745527318375,0.0586286,93544.0,93516.0,0.4633]
[1745527318574,0.0951,93533.0,93528.0,0.1068745]
[1745527318783,0.10760035,93533.0,93529.0,0.0302]
[1745527319379,0.1068703,93532.0,93529.0,0.0302]
[1745527319774,0.064,93531.0,93529.0,0.0302]
[1745527319977,0.07204706,93531.0,93529.0,0.0633]
[1745527320282,0.07204706,93531.0,93530.0,0.1068726]
[1745527320675,0.07204706,93531.0,93530.0,0.1703726]
[1745527321578,0.07304706,93531.0,93530.0,0.1733726]
[1745527321780,0.07404706,93531.0,93530.0,0.1763726]
[1745527322085,0.07404706,93531.0,93530.0,0.1773726]
[1745527322478,0.07404706,93531.0,93530.0,0.1783726]
[1745527322779,0.01004706,93531.0,93530.0,0.1783726]
[1745527322979,0.0545152,93567.0,93531.0,0.0534357]
[1745527323283,0.0534222,93555.0,93543.0,0.4676578]
[1745527323481,0.01225328,93546.0,93543.0,0.42656]
[1745527323686,0.0308,93545.0,93543.0,0.5642178]
[1745527323985,0.42656,93580.0,93547.0,0.0534264]
[1745527324175,0.1068369,93562.0,93558.0,0.3598]
[1745527324478,0.1376377,93561.0,93559.0,0.0312]
[1745527324682,0.15777069,93561.0,93559.0,0.0312]
[1745527324882,0.15777069,93561.0,93559.0,0.01682449]
[1745527325075,0.15777069,93561.0,93559.0,0.01582449]
[1745527325383,0.05093299,93561.0,93559.0,0.01582449]
[1745527325783,0.05393299,93561.0,93559.0,0.01682449]
[1745527325985,0.05593299,93561.0,93559.0,0.01782449]
[1745527326177,0.02513299,93561.0,93560.0,0.1068383]
[1745527326378,0.02513299,93561.0,93560.0,0.1380383]
[1745527326786,0.01283029,93561.0,93560.0,0.1380383]
[1745527326980,0.0011,93567.0,93566.0,0.1068315]
[1745527327284,0.0011,93567.0,93566.0,0.4676315]
[1745527327475,0.0011,93567.0,93566.0,0.4636315]
[1745527327682,0.12054189,93567.0,93566.0,0.3608]
[1745527328080,0.01871159,93567.0,93566.0,0.3578]
[1745527328479,0.05141159,93567.0,93566.0,0.3578]
[1745527328681,0.08241159,93567.0,93566.0,0.3568]
[1745527328983,0.08541159,93567.0,93566.0,0.3893]
[1745527329586,0.09326527,93567.0,93566.0,0.3893]
[1745527329786,0.08065368,93567.0,93566.0,0.3893]
[1745527330986,0.04765368,93567.0,93566.0,0.4961315]
[1745527331186,0.01495368,93567.0,93566.0,0.4961315]
[1745527332181,0.01195368,93567.0,93566.0,0.4991315]
[1745527332390,0.1068205,93576.0,93566.0,0.4991315]
[1745527332391,0.3608,93582.0,93566.0,0.3923]
[1745527332685,0.01204962,93587.0,93586.0,0.1068087]
[1745527332885,0.0322,93588.0,93587.0,0.1068075]
[1745527333886,0.0322,93588.0,93587.0,0.1038075]
[1745527334085,0.2042,93588.0,93587.0,0.1048075]
[1745527334288,0.21228503,93588.0,93587.0,0.1048075]
[1745527334492,0.21328503,93588.0,93587.0,0.1048075]
[1745527335086,0.05389311,93588.0,93587.0,0.1048075]
[1745527335390,0.00908503,93588.0,93587.0,0.1048075]
[1745527336183,0.02124617,93588.0,93587.0,0.001]
[1745527336391,0.001,93588.0,93587.0,0.001]
[1745527336800,0.0321,93588.0,93587.0,0.001]
[1745527337689,0.0321,93588.0,93587.0,0.0311]